bitfinex/quotes_SOLUSD_20220306
["timestamp","ask_amount","ask_price","bid_price","bid_amount"]
[1646596336335,1.55674257,85.408,85.361,24.0076]
[1646596336837,1.55674257,85.408,85.362,0.57667825]
[1646596337938,1.55674257,85.408,85.361,24.0076]
[1646596338739,1.55674257,85.413,85.361,24.0076]
[1646596338939,1.55674257,85.414,85.361,24.0076]
[1646596339140,0.00674257,85.413,85.363,0.56287022]
[1646596339439,5.855,85.442,85.363,0.56287022]
[1646596339642,3.12270925,85.455,85.371,116.2]
[1646596339839,3.12270925,85.459,85.38,16.92]
[1646596340040,3.12270925,85.46,85.381,58.16200871]
[1646596340239,3.12270925,85.458,85.381,58.16200871]
[1646596340446,3.12270925,85.457,85.381,58.16200871]
[1646596340641,3.12270925,85.458,85.39,17.567]
[1646596340840,3.12270925,85.459,85.39,34.487]
[1646596341040,3.12270925,85.458,85.39,34.487]
[1646596341343,17.5685,85.46,85.39,34.487]
[1646596341539,23.4215,85.46,85.39,34.487]
[1646596341739,26.54420925,85.46,85.39,34.487]
[1646596341940,5.853,85.453,85.39,16.92]
[1646596343439,116.2,85.449,85.39,16.92]
[1646596343640,5.853,85.448,85.373,22.8679]
[1646596343841,3.12270925,85.441,85.373,22.8679]
[1646596344040,119.32270925,85.439,85.373,22.8679]
[1646596344240,3.12270925,85.436,85.373,22.8679]
[1646596344445,17.5764,85.42,85.373,22.8679]
[1646596344642,17.5764,85.42,85.36,16.92]
[1646596344843,116.2,85.419,85.36,16.92]
[1646596345042,116.2,85.417,85.36,16.92]
[1646596345342,116.2,85.415,85.36,16.92]
[1646596345545,116.2,85.413,85.36,16.92]
[1646596345745,17.5788,85.41,85.36,16.92]
[1646596345945,5.855,85.409,85.36,16.92]
[1646596346747,5.855,85.411,85.36,16.92]
[1646596348052,116.2,85.425,85.36,16.92]
[1646596348250,17.5777,85.41,85.36,16.92]
[1646596351359,5.855,85.409,85.36,16.92]
[1646596354174,17.5802,85.4,85.36,16.92]
[1646596354381,116.2,85.399,85.34,16.92]
[1646596354579,116.2,85.397,85.33,16.92]
[1646596354783,5.1875626,85.418,85.316,47.6227]
[1646596354784,116.2,85.395,85.317,5.856]
[1646596354979,116.2,85.393,85.311,79.0434]
[1646596355379,116.2,85.389,85.311,79.0434]
[1646596355580,116.2,85.387,85.311,79.0434]
[1646596355782,116.2,85.385,85.311,79.0434]
[1646596355980,5.857,85.386,85.311,79.0434]
[1646596355981,116.2,85.383,85.311,79.0434]
[1646596356180,116.2,85.381,85.311,79.0434]
[1646596356381,116.2,85.379,85.311,79.0434]
[1646596356580,116.2,85.369,85.311,79.0434]
[1646596356780,116.2,85.367,85.311,79.0434]
[1646596356981,58.6352,85.38,85.311,79.0434]
[1646596356982,116.2,85.365,85.311,79.0434]
[1646596357181,116.2,85.363,85.311,79.0434]
[1646596358185,17.5894,85.36,85.311,79.0434]
[1646596358584,5.859,85.359,85.311,79.0434]
[1646596360590,3.12270925,85.406,85.312,116.70631378]
[1646596360891,23.5869,85.409,85.314,0.60828559]
[1646596361388,5.857,85.408,85.313,47.5605]
[1646596361988,17.5801,85.4,85.315,0.7945924]
[1646596362190,17.5801,85.4,85.321,0.7945924]
[1646596362388,5.857,85.408,85.33,16.92]
[1646596362587,5.857,85.408,85.331,51.61921175]
[1646596362789,5.857,85.408,85.332,0.68331335]
[1646596362989,3.12270925,85.434,85.332,116.88331335]
[1646596363189,22.9648,85.433,85.332,116.88331335]
[1646596363492,22.9648,85.433,85.341,116.2]
[1646596363689,22.9648,85.433,85.35,16.92]
[1646596363887,22.9648,85.433,85.361,58.5866403]
[1646596364090,22.9648,85.433,85.362,0.54103075]
[1646596364691,17.5734,85.43,85.362,0.54103075]
[1646596364894,5.855,85.429,85.361,58.5866403]
[1646596365494,4.855,85.432,85.361,58.5866403]
[1646596365693,17.5754,85.42,85.361,58.5866403]
[1646596365894,5.855,85.419,85.361,58.5866403]
[1646596366494,5.855,85.432,85.361,58.5866403]
[1646596367097,17.5738,85.43,85.361,58.5866403]
[1646596367297,5.855,85.429,85.361,58.5866403]
[1646596368997,5.855,85.429,85.36,16.92]
[1646596368998,17.5757,85.42,85.36,16.92]
[1646596369197,5.855,85.419,85.36,16.92]
[1646596369397,9.92991481,85.431,85.36,16.92]
[1646596369597,58.5997,85.42,85.36,16.92]
[1646596369900,17.58,85.41,85.36,16.92]
[1646596370098,5.855,85.409,85.36,16.92]
[1646596371405,3.12270925,85.436,85.361,0.49226673]
[1646596371598,3.12270925,85.449,85.37,17.5714]
[1646596371800,3.12270925,85.449,85.371,53.82857644]
[1646596371998,5.854,85.436,85.371,53.82857644]
[1646596372498,145.29576741,85.452,85.371,53.82857644]
[1646596372499,5.854,85.432,85.371,53.82857644]
[1646596372701,17.5734,85.43,85.371,53.82857644]
[1646596372901,5.854,85.429,85.371,53.09766821]
[1646596374008,23.2939,85.447,85.371,53.09766821]
[1646596374206,3.12270925,85.468,85.373,0.95733191]
[1646596374504,24.7668,85.471,85.381,117.17657599]
[1646596374704,5.853,85.47,85.391,0.97657599]
[1646596374904,23.4187,85.47,85.393,0.97657599]
[1646596375103,23.4187,85.47,85.392,5.852]
[1646596375304,23.4187,85.47,85.393,0.6024172]
[1646596375504,5.353,85.47,85.403,116.2]
[1646596375705,113.4,85.476,85.412,0.77126403]
[1646596376106,5.851,85.483,85.412,0.77126403]
[1646596376509,5.851,85.486,85.414,116.2]
[1646596376705,17.8976,85.495,85.415,0.77126403]
[1646596376906,3.12270925,85.514,85.44,17.5569]
[1646596377106,3.12270925,85.515,85.441,0.77126403]
[1646596377306,5.849,85.508,85.441,0.77126403]
[1646596377908,5.849,85.512,85.441,0.77126403]
[1646596378107,5.849,85.512,85.451,0.77126403]
[1646596378309,5.849,85.52,85.451,0.77126403]
[1646596378510,5.848,85.532,85.451,0.77126403]
[1646596378709,5.848,85.533,85.451,0.77126403]
[1646596378911,5.848,85.533,85.45,34.4747]
[1646596379116,17.5547,85.53,85.45,34.4747]
[1646596379311,5.848,85.529,85.45,34.4747]
[1646596379913,5.848,85.529,85.45,16.92]
[1646596380115,8.97070925,85.535,85.45,16.92]
[1646596380326,17.5569,85.52,85.45,16.92]
[1646596380529,5.848,85.519,85.45,16.92]
[1646596381328,5.848,85.519,85.451,116.2]
[1646596381527,5.848,85.536,85.45,16.92]
[1646596382027,3.12270925,85.541,85.45,16.92]
[1646596382028,5.848,85.539,85.45,16.92]
[1646596382231,5.848,85.539,85.451,116.2]
[1646596382429,5.848,85.542,85.452,0.55163537]
[1646596383232,5.848,85.547,85.452,0.55163537]
[1646596383432,5.848,85.547,85.455,0.61626858]
[1646596383831,5.847,85.55,85.455,0.61626858]
[1646596384239,5.847,85.553,85.456,116.2]
[1646596384441,5.847,85.553,85.455,70.21626858]
[1646596384442,5.847,85.553,85.471,116.2]
[1646596384635,5.847,85.566,85.482,0.82158487]
[1646596384835,5.846,85.575,85.482,0.82158487]
[1646596385335,5.846,85.553,85.482,0.82158487]
[1646596386334,5.846,85.584,85.484,0.82158487]
[1646596386536,5.846,85.586,85.493,116.2]
[1646596386833,5.845,85.599,85.501,116.2]
[1646596387039,5.845,85.599,85.5,16.92]
[1646596387040,8.43998102,85.599,85.504,0.82158487]
[1646596387238,2.59498102,85.598,85.504,0.82158487]
[1646596387437,5.844,85.597,85.503,116.2]
[1646596387637,5.844,85.597,85.504,0.5477968]
[1646596387836,2.59498102,85.596,85.504,0.5477968]
[1646596388049,5.844,85.595,85.504,0.5477968]
[1646596388438,5.844,85.606,85.504,0.5477968]
[1646596388938,5.844,85.614,85.511,0.57719015]
[1646596389138,5.844,85.614,85.53,17.5357]
[1646596389339,5.844,85.614,85.541,55.97640837]
[1646596389542,5.844,85.614,85.542,0.54895639]
[1646596389740,5.844,85.614,85.54,16.92]
[1646596389940,23.49134419,85.613,85.54,16.92]
[1646596390139,5.841,85.612,85.54,16.92]
[1646596390340,11.19947729,85.612,85.522,73.3986]
[1646596390540,17.5389,85.61,85.522,73.3986]
[1646596390742,5.843,85.609,85.522,73.3986]
[1646596391043,31.92932521,85.609,85.522,73.3986]
[1646596391239,23.49134419,85.608,85.522,73.3986]
[1646596391438,5.843,85.607,85.522,73.3986]
[1646596391639,8.43798102,85.607,85.522,73.3986]
[1646596391840,2.59498102,85.606,85.522,73.3986]
[1646596392042,5.843,85.605,85.522,73.3986]
[1646596392240,17.5413,85.6,85.522,73.3986]
[1646596392443,116.2,85.598,85.522,73.3986]
[1646596392641,116.2,85.596,85.495,5.843]
[1646596392842,10.10950143,85.597,85.48,16.92]
[1646596392843,116.2,85.589,85.48,16.92]
[1646596393042,116.2,85.587,85.471,5.844]
[1646596393242,120.90569178,85.579,85.471,5.844]
[1646596393441,5.846,85.578,85.472,64.7863131]
[1646596393641,58.5062,85.57,85.472,64.7863131]
[1646596393843,5.846,85.569,85.471,5.844]
[1646596394041,29.7311,85.569,85.47,16.92]
[1646596394242,75.45386376,85.569,85.47,16.92]
[1646596394544,4.54670153,85.567,85.47,16.92]
[1646596394840,116.2,85.565,85.47,16.92]
[1646596395043,17.5519,85.55,85.47,16.92]
[1646596395242,5.847,85.549,85.47,16.92]
[1646596395441,8.44198102,85.549,85.47,16.92]
[1646596395844,2.59498102,85.548,85.47,16.92]
[1646596396046,5.847,85.547,85.47,16.92]
[1646596396444,2.59498102,85.546,85.47,16.92]
[1646596396644,5.847,85.545,85.47,16.92]
[1646596397049,2.59498102,85.544,85.47,16.92]
[1646596397247,5.847,85.543,85.47,16.92]
[1646596397649,2.59498102,85.554,85.471,0.62366696]
[1646596397847,2.59498102,85.554,85.473,0.64118521]
[1646596398049,2.59498102,85.554,85.474,5.846]
[1646596398447,2.59498102,85.554,85.471,5.846]
[1646596399449,5.847,85.553,85.471,5.846]
[1646596399849,17.5507,85.55,85.471,5.846]
[1646596400550,5.847,85.549,85.471,5.846]
[1646596400751,17.5534,85.54,85.471,5.846]
[1646596400954,5.847,85.539,85.468,52.59865254]
[1646596401154,34.74071854,85.539,85.468,52.59865254]
[1646596401555,145.09371854,85.538,85.45,76.3847]
[1646596401755,116.2,85.536,85.45,76.3847]
[1646596401954,5.848,85.537,85.45,76.3847]
[1646596401955,17.5571,85.52,85.45,76.3847]
[1646596402157,5.848,85.519,85.45,76.3847]
[1646596402556,5.848,85.519,85.452,47.95657762]
[1646596402756,2.59498102,85.545,85.454,0.60686884]
[1646596402956,2.59498102,85.545,85.462,0.72616174]
[1646596403155,5.98961254,85.582,85.471,116.2]
[1646596403156,5.847,85.567,85.471,116.2]
[1646596403356,6.39792697,85.566,85.474,0.72616174]
[1646596403555,5.846,85.565,85.474,0.72616174]
[1646596403956,5.846,85.576,85.474,0.72616174]
[1646596404156,6.39758946,85.575,85.474,0.72616174]
[1646596404355,5.846,85.574,85.474,0.72616174]
[1646596404759,6.39758946,85.573,85.474,0.72616174]
[1646596405158,6.39758946,85.573,85.473,116.2]
[1646596405159,3.12270925,85.563,85.481,177.84845553]
[1646596405457,3.12270925,85.563,85.492,0.72616174]
[1646596405858,9.52029871,85.569,85.492,0.72616174]
[1646596406060,6.39758946,85.57,85.494,116.92616174]
[1646596406261,3.12270925,85.579,85.501,116.2]
[1646596406462,3.12270925,85.579,85.511,116.2]
[1646596406661,3.12270925,85.579,85.52,16.92]
[1646596407162,3.12270925,85.578,85.52,16.92]
[1646596407365,6.39758946,85.588,85.52,16.92]
[1646596407366,3.12270925,85.579,85.52,16.92]
[1646596407565,3.12270925,85.578,85.52,16.92]
[1646596407763,3.12270925,85.579,85.52,16.92]
[1646596408063,5.844,85.578,85.52,16.92]
[1646596408264,3.12270925,85.575,85.52,16.92]
[1646596408463,3.12270925,85.575,85.52,34.4607]
[1646596408663,3.12270925,85.574,85.52,34.4607]
[1646596408863,17.5464,85.57,85.52,16.92]
[1646596409171,3.12270925,85.564,85.5,16.92]
[1646596409366,5.845,85.563,85.5,16.92]
[1646596409564,8.96770925,85.563,85.5,16.92]
[1646596409763,9.52029871,85.562,85.5,16.92]
[1646596409966,5.845,85.561,85.501,51.78044406]
[1646596410163,6.39758946,85.56,85.501,51.78044406]
[1646596411064,9.52029871,85.56,85.5,16.92]
[1646596411265,3.12270925,85.559,85.5,16.92]
[1646596411465,3.12270925,85.553,85.5,16.92]
[1646596413567,3.12270925,85.551,85.5,16.92]
[1646596415688,3.12270925,85.55,85.5,16.92]
[1646596415989,9.52029871,85.55,85.5,16.92]
[1646596416191,3.12270925,85.55,85.5,16.92]
[1646596416590,3.12270925,85.55,85.5,34.4659]
[1646596416789,3.12270925,85.555,85.5,34.4659]
[1646596416989,6.39758946,85.556,85.5,34.4659]
[1646596416990,9.52029871,85.556,85.5,34.4659]
[1646596417189,3.12270925,85.556,85.5,34.4659]
[1646596417390,6.39758946,85.555,85.5,34.4659]
[1646596417594,3.12270925,85.557,85.5,34.4659]
[1646596417993,3.12270925,85.556,85.5,34.4659]
[1646596418192,3.12270925,85.548,85.5,34.4659]
[1646596418393,3.12270925,85.553,85.5,34.4659]
[1646596418993,3.12270925,85.556,85.5,34.4659]
[1646596419194,5.846,85.555,85.5,34.4659]
[1646596419393,6.39758946,85.554,85.5,34.4659]
[1646596419593,5.846,85.553,85.5,34.4659]
[1646596419793,8.96870925,85.553,85.5,34.4659]
[1646596419993,3.12270925,85.549,85.5,34.4659]
[1646596420898,3.12270925,85.55,85.5,34.4659]
[1646596421095,3.12270925,85.55,85.51,17.5407]
[1646596421296,3.12270925,85.556,85.51,34.4607]
[1646596421593,6.39758946,85.555,85.51,34.4607]
[1646596421996,6.39758946,85.554,85.51,34.4607]
[1646596422195,3.12270925,85.555,85.51,34.4607]
[1646596422900,3.12270925,85.556,85.51,34.4607]
[1646596424196,3.12270925,85.557,85.51,34.4607]
[1646596424796,3.12270925,85.56,85.51,34.4607]
[1646596425097,3.12270925,85.559,85.51,34.4607]
[1646596426296,3.12270925,85.561,85.51,34.4607]
[1646596426497,3.12270925,85.562,85.51,16.92]
[1646596426699,3.12270925,85.545,85.46,16.92]
[1646596426898,3.12270925,85.538,85.472,47.5509]
[1646596427098,17.5531,85.53,85.472,47.5509]
[1646596427599,3.12270925,85.537,85.475,57.61345519]
[1646596427800,3.12270925,85.538,85.475,57.61345519]
[1646596429401,9.52171269,85.539,85.475,57.61345519]
[1646596429601,9.52171269,85.537,85.475,57.61345519]
[1646596429802,3.12270925,85.537,85.475,57.61345519]
[1646596430201,5.847,85.536,85.475,57.61345519]
[1646596430402,6.39900344,85.535,85.475,57.61345519]
[1646596430802,5.847,85.534,85.475,57.61345519]
[1646596431001,6.39900344,85.533,85.475,57.61345519]
[1646596431203,5.847,85.532,85.475,57.61345519]
[1646596431702,5.847,85.538,85.475,57.61345519]
[1646596431903,3.12270925,85.536,85.475,57.61345519]
[1646596432203,5.847,85.535,85.475,57.61345519]
[1646596432402,5.847,85.535,85.48,17.5508]
[1646596432605,3.12270925,85.536,85.48,17.5508]
[1646596432804,5.847,85.552,85.481,0.59935609]
[1646596432805,6.39933029,85.534,85.481,0.59935609]
[1646596433002,6.39933029,85.551,85.481,0.59935609]
[1646596433208,9.52203954,85.557,85.481,116.2]
[1646596433404,3.12270925,85.556,85.492,0.55081251]
[1646596433604,3.12270925,85.556,85.501,58.34955964]
[1646596433605,6.39933029,85.556,85.501,58.34955964]
[1646596433804,6.39933029,85.557,85.501,58.34955964]
[1646596434004,5.845,85.556,85.501,58.34955964]
[1646596434304,9.52203954,85.555,85.501,58.34955964]
[1646596434506,5.846,85.554,85.501,58.34955964]
[1646596434703,6.39933029,85.553,85.501,58.34955964]
[1646596434904,17.5489,85.55,85.501,58.34955964]
[1646596435106,5.846,85.549,85.501,58.34955964]
[1646596436106,6.39793625,85.548,85.501,58.34955964]
[1646596436306,5.846,85.547,85.49,17.5478]
[1646596436706,11.94238412,85.546,85.49,17.5478]
[1646596436906,5.846,85.545,85.49,17.5478]
[1646596437306,17.5507,85.54,85.48,64.92483475]
[1646596437708,5.847,85.539,85.48,64.92483475]
[1646596437908,17.78938412,85.539,85.48,64.92483475]
[1646596438309,11.94238412,85.538,85.48,64.92483475]
[1646596438707,5.847,85.537,85.48,64.92483475]
[1646596439106,11.94238412,85.536,85.48,64.92483475]
[1646596439506,11.94238412,85.538,85.48,64.92483475]
[1646596440307,11.94238412,85.538,85.481,116.72847411]
[1646596440508,11.94238412,85.539,85.49,17.5463]
[1646596440708,11.94238412,85.539,85.491,0.52847411]
[1646596440914,11.94238412,85.546,85.481,116.2]
[1646596441308,11.94238412,85.549,85.481,116.2]
[1646596441808,11.94238412,85.549,85.5,17.5469]
[1646596442509,11.94238412,85.554,85.501,116.2]
[1646596442910,11.94238412,85.557,85.511,179.38750821]
[1646596443108,11.94238412,85.557,85.511,63.18750821]
[1646596443310,11.94238412,85.562,85.511,63.18750821]
[1646596443709,11.94238412,85.566,85.511,63.18750821]
[1646596444311,11.94238412,85.566,85.521,116.2]
[1646596444510,11.94238412,85.567,85.521,116.2]
[1646596444709,11.94238412,85.567,85.523,116.2]
[1646596444911,3.12270925,85.58,85.523,116.2]
[1646596445210,3.12270925,85.585,85.523,116.2]
[1646596445411,11.9052606,85.579,85.523,116.2]
[1646596445813,15.02796985,85.585,85.53,17.5365]
[1646596446016,15.02796985,85.585,85.53,34.4565]
[1646596446214,11.9052606,85.584,85.53,34.4565]
[1646596446414,11.9052606,85.584,85.531,116.2]
[1646596446615,11.9052606,85.587,85.531,116.2]
[1646596447014,11.9052606,85.588,85.531,116.2]
[1646596447215,11.9052606,85.588,85.53,16.92]
[1646596447416,11.9052606,85.589,85.53,16.92]
[1646596447616,11.9052606,85.589,85.54,17.538]
[1646596447837,11.9052606,85.59,85.541,53.67707421]
[1646596448341,15.02796985,85.59,85.541,53.67707421]
[1646596448642,11.9052606,85.589,85.541,53.67707421]
[1646596449040,11.9052606,85.591,85.541,53.67707421]
[1646596449238,5.843,85.59,85.541,53.67707421]
[1646596449940,11.9052606,85.589,85.541,53.67707421]
[1646596450143,5.843,85.588,85.541,53.67707421]
[1646596450542,11.9052606,85.589,85.541,53.67707421]
[1646596450739,11.9052606,85.587,85.541,53.67707421]
[1646596451141,11.9052606,85.591,85.541,53.67707421]
[1646596451344,5.843,85.59,85.541,53.67707421]
[1646596451740,5.843,85.591,85.541,53.67707421]
[1646596451939,11.9052606,85.589,85.522,24.4475]
[1646596452140,5.844,85.588,85.522,24.4475]
[1646596452341,119.32270925,85.587,85.52,16.92]
[1646596452542,3.12270925,85.581,85.5,16.92]
[1646596452742,5.844,85.58,85.504,24.5661]
[1646596452942,17.5454,85.57,85.513,54.70671135]
[1646596453141,3.12270925,85.582,85.513,54.70671135]
[1646596453142,5.845,85.569,85.513,54.70671135]
[1646596453340,5.845,85.578,85.504,24.5661]
[1646596453541,11.9052606,85.568,85.504,24.5661]
[1646596453946,11.9052606,85.577,85.504,24.5661]
[1646596454143,17.5453,85.57,85.52,17.5444]
[1646596454344,17.5453,85.57,85.521,61.39763907]
[1646596454744,11.9052606,85.569,85.521,61.39763907]
[1646596455148,11.9052606,85.569,85.53,17.5421]
[1646596455343,11.9052606,85.578,85.53,17.5421]
[1646596456151,11.9052606,85.586,85.53,17.5421]
[1646596456655,11.9052606,85.587,85.53,17.5421]
[1646596457052,15.02796985,85.588,85.53,17.5421]
[1646596457452,11.9052606,85.587,85.53,17.5421]
[1646596458253,5.843,85.586,85.53,17.5421]
[1646596458453,17.543,85.58,85.522,23.2072]
[1646596458653,5.844,85.579,85.522,23.2072]
[1646596459056,11.9052606,85.578,85.522,23.2072]
[1646596459254,1.57686191,85.562,85.522,23.2072]
[1646596459553,1.57686191,85.561,85.522,23.2072]
[1646596459754,1.57686191,85.56,85.522,23.2072]
[1646596460156,1.57686191,85.559,85.522,23.2072]
[1646596460555,1.57686191,85.559,85.523,116.2]
[1646596460758,1.57686191,85.567,85.525,116.2]
[1646596460956,1.57686191,85.568,85.526,0.70563928]
[1646596461156,1.57686191,85.569,85.53,17.5402]
[1646596461455,1.57686191,85.568,85.531,0.70563928]
[1646596461658,1.57686191,85.568,85.53,16.92]
[1646596462055,1.57686191,85.564,85.53,16.92]
[1646596462456,1.57686191,85.565,85.53,16.92]
[1646596462657,1.57686191,85.564,85.53,16.92]
[1646596462856,1.57686191,85.564,85.531,0.50244115]
[1646596463057,1.57686191,85.564,85.53,16.92]
[1646596463256,1.57686191,85.564,85.54,17.5382]
[1646596464957,1.57686191,85.563,85.54,17.5382]
[1646596465358,1.57686191,85.562,85.54,17.5382]
[1646596465759,1.57686191,85.563,85.54,17.5382]
[1646596466664,1.57686191,85.563,85.53,34.46]
[1646596467863,1.57686191,85.555,85.53,34.46]
[1646596468061,1.57686191,85.554,85.53,16.92]
[1646596468262,1.57686191,85.551,85.513,5.845]
[1646596468464,1.57686191,85.551,85.497,5.845]
[1646596468662,1.57686191,85.548,85.49,16.92]
[1646596469269,1.57686191,85.547,85.491,61.26620685]
[1646596469968,1.57686191,85.534,85.491,61.26620685]
[1646596470366,1.57686191,85.536,85.491,61.26620685]
[1646596470566,1.57686191,85.536,85.49,16.92]
[1646596470768,1.57686191,85.532,85.49,16.92]
[1646596470966,1.57686191,85.53,85.49,16.92]
[1646596471266,1.57686191,85.532,85.49,16.92]
[1646596472068,1.57686191,85.531,85.49,16.92]
[1646596472470,1.57686191,85.53,85.49,16.92]
[1646596472667,1.57686191,85.529,85.49,34.4687]
[1646596473468,1.57686191,85.529,85.49,16.92]
[1646596474191,1.57686191,85.531,85.49,16.92]
[1646596474394,1.57686191,85.53,85.49,16.92]
[1646596474993,1.57686191,85.532,85.49,16.92]
[1646596475693,1.57686191,85.532,85.491,0.499114]
[1646596475892,1.57686191,85.53,85.491,0.499114]
[1646596476094,1.57686191,85.531,85.49,34.4685]
[1646596476295,1.57686191,85.532,85.49,34.4685]
[1646596476899,1.57686191,85.534,85.49,34.4685]
[1646596477901,1.57686191,85.533,85.49,34.4685]
[1646596478306,1.57686191,85.534,85.49,34.4685]
[1646596478499,1.57686191,85.534,85.491,0.54896754]
[1646596478699,1.57686191,85.534,85.49,34.4685]
[1646596478900,1.57686191,85.532,85.49,16.92]
[1646596479299,1.57686191,85.533,85.49,16.92]
[1646596480101,1.57686191,85.533,85.49,34.4688]
[1646596480301,1.57686191,85.536,85.491,0.53562184]
[1646596480502,1.57686191,85.536,85.491,116.73562184]
[1646596480702,1.57686191,85.537,85.491,116.73562184]
[1646596480910,1.57686191,85.545,85.491,0.53562184]
[1646596481105,1.57686191,85.543,85.49,16.92]
[1646596481507,1.57686191,85.545,85.501,116.73067419]
[1646596481804,5.847,85.558,85.501,116.73067419]
[1646596481805,1.57686191,85.547,85.501,116.73067419]
[1646596482008,24.9164,85.559,85.501,116.73067419]
[1646596482009,1.57686191,85.551,85.501,116.2]
[1646596482205,1.57686191,85.553,85.502,0.58699134]
[1646596482607,1.57686191,85.55,85.5,16.92]
[1646596483007,1.57686191,85.549,85.5,16.92]
[1646596483408,1.57686191,85.549,85.51,17.5412]
[1646596484009,1.57686191,85.552,85.51,17.5412]
[1646596484210,1.57686191,85.551,85.51,17.5412]
[1646596484409,1.57686191,85.552,85.51,17.5412]
[1646596484809,1.57686191,85.555,85.51,17.5412]
[1646596485010,1.57686191,85.554,85.51,17.5412]
[1646596485611,1.57686191,85.552,85.51,17.5412]
[1646596485811,1.57686191,85.548,85.51,17.5412]
[1646596486010,1.57686191,85.55,85.51,17.5412]
[1646596486212,1.57686191,85.552,85.501,23.9819]
[1646596486612,1.57686191,85.549,85.501,23.9819]
[1646596486912,1.57686191,85.55,85.501,23.9819]
[1646596487116,1.57686191,85.549,85.501,23.9819]
[1646596487314,1.57686191,85.548,85.501,23.9819]
[1646596487516,1.57686191,85.549,85.51,17.5447]
[1646596488520,1.57686191,85.548,85.51,17.5447]
[1646596489121,1.57686191,85.549,85.511,0.59819753]
[1646596489322,1.57686191,85.548,85.511,0.59819753]
[1646596489524,1.57686191,85.548,85.51,17.5447]
[1646596489725,1.57686191,85.549,85.51,17.5447]
[1646596489923,1.57686191,85.55,85.51,17.5447]
[1646596490221,1.57686191,85.549,85.51,17.5447]
[1646596490526,1.57686191,85.548,85.51,17.5447]
[1646596492325,1.57686191,85.548,85.501,23.9819]
[1646596492733,1.57686191,85.547,85.501,23.9819]
[1646596493345,1.57686191,85.546,85.501,23.9819]
[1646596494346,1.57686191,85.546,85.428,3.1679704]
[1646596494347,1.57686191,85.546,85.481,5.847]
[1646596494545,1.57686191,85.541,85.481,5.847]
[1646596494745,1.57686191,85.537,85.481,5.847]
[1646596495150,18.73864371,85.536,85.481,5.847]
[1646596495347,1.57686191,85.526,85.481,5.847]
[1646596495547,1.57686191,85.52,85.481,5.847]
[1646596495748,116.2,85.518,85.446,22.876]
[1646596496047,1.57686191,85.505,85.446,22.876]
[1646596496247,1.57686191,85.505,85.432,22.952]
[1646596496547,17.5631,85.5,85.432,22.952]
[1646596496746,5.849,85.499,85.432,22.952]
[1646596497148,116.2,85.498,85.43,16.92]
[1646596497451,17.5613,85.49,85.416,22.7786]
[1646596497649,5.851,85.489,85.417,5.851]
[1646596497849,117.77686191,85.488,85.417,5.851]
[1646596498049,1.57686191,85.483,85.417,5.851]
[1646596498549,17.5641,85.48,85.417,5.851]
[1646596498749,5.851,85.479,85.417,5.851]
[1646596498948,15.471,85.479,85.417,5.851]
[1646596499349,116.2,85.478,85.417,5.851]
[1646596499549,116.2,85.476,85.416,5.851]
[1646596499750,116.2,85.474,85.392,5.851]
[1646596499954,17.5659,85.47,85.4,17.5672]
[1646596500152,116.2,85.468,85.4,17.5672]
[1646596500352,116.2,85.468,85.38,16.92]
[1646596500553,116.2,85.466,85.38,16.92]
[1646596500752,116.2,85.466,85.381,63.35468736]
[1646596500952,17.5701,85.45,85.381,63.35468736]
[1646596501153,5.853,85.449,85.381,63.35468736]
[1646596501354,5.853,85.462,85.381,63.35468736]
[1646596501554,24.3935,85.463,85.382,5.853]
[1646596503054,24.3935,85.463,85.391,116.2]
[1646596503256,24.3935,85.463,85.393,116.2]
[1646596503554,24.3935,85.463,85.396,0.68467292]